[Event "RLP-ch Rapid 2024"]
[Site "Landau"]
[Date "2024.05.04"]
[Round "2.1"]
[White "Carow, Johannes"]
[Black "Hinrichs, Paul"]
[Result "1-0"]
[ECO "D46"]
[WhiteElo "2456"]
[BlackElo "2255"]
[Annotator "TA"]
[PlyCount "89"]
[EventDate "2024.05.03"]
[EventType "swiss"]
[EventCountry "GER"]
[SourceTitle "playchess.com"]
[Source "ChessBase"]
[SourceQuality "1"]
[TimeControl "900+5"]

{[%evp 21,89,25,29,14,8,24,25,6,4,-14,-20,-18,70,80,80,80,77,83,77,33,59,59,317,314,373,300,297,306,281,180,182,154,137,156,553,250,322,167,164,164,293,290,277,208,502,491,545,543,544,491,689,665,748,579,805,540,979,988,978,1014,1010,998,950,933,899,776,29977,29978,29982,29983]} 1. c4 {[%emt 0:00:08]} c6 {[%emt 0:00:02]} 2. Nc3 {[%emt 0:00:18]} d5 {[%emt 0:00:01]} 3. e3 {[%emt 0:00:02]} Nf6 {[%emt 0:00:02]} 4. Nf3 {[%emt 0:00:06]} e6 {[%emt 0:00:01]} 5. d4 {[%emt 0:01:16]} Nbd7 {[%emt 0:00:03]} 6. Qc2 {[%emt 0:00:02]} Bd6 {[%emt 0:00:04]} 7. Bd3 {[%emt 0:00:01]} O-O {[%emt 0:00:04]} 8. O-O {[%emt 0:00:03]} dxc4 {[%emt 0:00:05]} 9. Bxc4 {[%emt 0:00:01]} b5 {[%emt 0:00:00]} 10. Be2 {[%emt 0:00:02]} Bb7 {[%emt 0:00:21]} 11. e4 {[%emt 0:00:07]} e5 {[%emt 0:00:02]} 12. dxe5 {[%emt 0:00:03]} Nxe5 {[%emt 0:00:01]} 13. Nh4 {[%emt 0:00:01]} g6 {[%emt 0:00:02]} 14. Bg5 {[%emt 0:00:02] [#] Hoping for f4. White has an edge.} h6 $1 {[%emt 0:00:04]} 15. Bxf6 {[%emt 0:00:02]} Qxf6 {[%emt 0:00:02]} 16. g3 {[%emt 0:00:01]} Bc8 {[%emt 0:03:51]} (16... Rad8 $11) 17. f4 $14 {[%emt 0:03:22]} Ng4 {[%emt 0:01:28]} 18. e5 {[%emt 0:00:27]} Bc5+ {[%emt 0:00:07]} 19. Kh1 {[%emt 0:00:03]} Qe6 {[%emt 0:01:08]} 20. Ne4 {[%emt 0:06:41]} Be7 {[%emt 0:00:01]} 21. Ng2 $36 {[%emt 0:00:12][%mdl 2048] Dodges Ne3. White is more active.} Nxh2 $2 {[%emt 0:04:30][%mdl 8192]} 22. Kxh2 $18 {[%emt 0:00:37]} Qh3+ {[%emt 0:00:01]} 23. Kg1 {[%emt 0:00:02][%cal Og1f2] Black must now prevent Kf2!} Bf5 {[%emt 0:00:01]} 24. Rac1 {[%emt 0:00:54]} (24. Qxc6 Bxe4 25. Qxe4 Bc5+ 26. Rf2 Qxg3 $11) 24... Bd8 {[%emt 0:00:01]} 25. Rf2 {[%emt 0:02:27][%cal Og2e3] And now Ne3! would win.} (25. Qxc6 Bxe4 26. Qxe4 Bb6+ 27. Rf2 Qxg3 $11) 25... Bb6 {[%emt 0:00:26]} 26. g4 {[%emt 0:00:04]} Bxe4 {[%emt 0:01:30]} 27. Qxe4 {[%emt 0:00:06][%cal Oc1c3] Rc3! would now be deadly.} Rad8 $2 {[%emt 0:00:03] This costs Black the game.} (27... Qg3 $16 28. Qf3 Qxf3 29. Bxf3 Rac8) 28. Rxc6 {[%emt 0:00:05]} (28. Rc3 $142 Bxf2+ 29. Kxf2) 28... Bd4 {[%emt 0:02:18]} 29. Qf3 {[%emt 0:00:08] Prevents Qg3} (29. e6 $142 {[%cal Oe6e7] Threatens to win with e7!} Qg3 30. exf7+ Kh8 31. Qf3 Qxf3 32. Bxf3 Rxf7 33. Nh4 (33. Rxg6 h5 $18)) 29... Qxf3 {[%emt 0:00:16]} 30. Bxf3 {[%emt 0:00:01][%cal Og1f1]} Bxf2+ {[%emt 0:00:01]} (30... Rc8 {was necessary.} 31. Kf1 Bxf2 32. Kxf2 Rxc6 33. Bxc6 Rc8) 31. Kxf2 {[%emt 0:00:01]} Rd2+ {[%emt 0:00:01]} 32. Kg3 {[%emt 0:00:02]} Rxb2 $2 {[%emt 0:00:01]} (32... a5 33. f5 Re8) 33. Bd5 {[%emt 0:00:02]} Rd8 {[%emt 0:00:48]} 34. Rxg6+ {[%emt 0:00:17]} Kf8 {[%emt 0:00:03]} 35. Rd6 {[%emt 0:00:01]} (35. Rxh6 $2 Rxd5 36. Ne3 Rd3 $17) 35... Rxd6 {[%emt 0:00:16]} (35... Rc8 $142 36. Nh4 (36. Rxh6 Rc3+ 37. Bf3 Rxa2 $18) 36... Rc5) 36. exd6 {[%emt 0:00:01]} a5 {[%emt 0:00:03][%cal Ba7a5,Ba5a4][%mdl 32]} 37. Ne3 {[%emt 0:00:01]} Rd2 {[%emt 0:00:02]} 38. Kf3 {[%emt 0:00:10]} b4 {[%emt 0:00:00]} 39. Ke4 {[%emt 0:00:02]} a4 {[%emt 0:00:03]} 40. Nf5 {[%emt 0:00:06][%cal Od6d7] White threatens d7! and mate.} Ke8 {[%emt 0:00:06] [#]} 41. Bc6+ $1 {[%emt 0:00:06]} (41. Nxh6 b3 42. Bxf7+ (42. axb3 a3 $19) 42... Kf8 43. Bxb3 (43. axb3 $2 a3 $19) 43... axb3 44. axb3 Rxd6 $11) 41... Kd8 {[%emt 0:00:00]} 42. Bxa4 {[%emt 0:00:04]} (42. Nxh6 b3 43. Nxf7+ (43. Bxa4 $2 {too greedy.} bxa2 44. Nxf7+ Kc8 $19) 43... Kc8 $17) 42... Rxa2 {[%emt 0:00:02]} 43. Bb3 {[%emt 0:00:04]} Rg2 {[%emt 0:00:10]} 44. Nxh6 {[%emt 0:00:06]} Kd7 {[%emt 0:00:00]} 45. Nxf7 {[%emt 0:00:02] Weighted Error Value: White=0.52/Black=0.72.  Loses game:     	---       	Black=2      Mistake:       	White=2     	Black=4      Inaccurate:     	White=2     	Black=1      OK:         	White=5     	Black=6      Best:        	White=4     	Black=4      Strong:       	---       	Black=1} 1-0

[Event "RLP-ch Rapid 2024"]
[Site "Landau"]
[Date "2024.05.04"]
[Round "2.2"]
[White "Bruch, Jochen"]
[Black "Frischmann, Rick"]
[Result "1/2-1/2"]
[ECO "A09"]
[WhiteElo "2181"]
[BlackElo "2355"]
[Annotator "TA"]
[PlyCount "89"]
[EventDate "2024.05.03"]
[EventType "swiss"]
[EventCountry "GER"]
[SourceTitle "playchess.com"]
[Source "ChessBase"]
[SourceQuality "1"]
[TimeControl "900+5"]

{[%evp 9,89,-16,37,39,48,43,41,-16,0,-29,-37,-130,-62,-52,-10,-18,-13,-70,0,0,0,-7,0,-24,-22,-171,-70,-116,-129,-141,-112,-110,-121,-114,-112,-112,-91,-89,0,-61,0,0,0,0,0,-14,13,0,243,0,8,14,6,12,27,-16,-17,-73,-79,-102,-21,-155,-45,-75,0,0,0,0,82,92,83,-50,214,0,0,0,0,0,0,0,0,0]} 1. Nf3 {[%emt 0:00:01]} d5 {[%emt 0:00:02][%cal Bd7d5,Bd5d4][%mdl 32]} 2. g3 {[%emt 0:00:02]} Nc6 {[%emt 0:00:07]} 3. c4 {[%emt 0:00:11]} d4 {[%emt 0:00:30]} 4. d3 {[%emt 0:00:09]} e5 {[%emt 0:00:05]} 5. Bg2 {[%emt 0:00:02]} f5 {[%emt 0:01:46]} (5... Bb4+ $11 6. Bd2 a5) 6. O-O $14 {[%emt 0:00:06]} Nf6 {[%emt 0:00:03]} 7. e3 {[%emt 0:01:05]} dxe3 {[%emt 0:00:01]} 8. fxe3 {[%emt 0:00:02]} ({White should try} 8. Bxe3 $14 Be7 9. Nc3) 8... Bd6 {[%emt 0:00:46]} 9. d4 {[%emt 0:00:07]} e4 {[%emt 0:00:03]} 10. Nfd2 {[%emt 0:00:41]} (10. Ng5 $15) 10... O-O {[%emt 0:00:28]} (10... h5 $1 $17 11. c5 Be7) 11. Nc3 {[%emt 0:00:28]} Kh8 {[%emt 0:00:10]} 12. a3 {[%emt 0:00:42] Wards off Nb4} Ng4 {[%emt 0:01:12]} 13. Qe2 {[%emt 0:00:16]} (13. Qe1 $11) 13... Qg5 {[%emt 0:02:21]} (13... Nxh2 $15 14. Kxh2 Qh4+ 15. Kg1 Qxg3) 14. c5 $1 $11 {[%emt 0:00:30]} Be7 {[%emt 0:03:13]} (14... Qxe3+ 15. Qxe3 Nxe3 16. cxd6 Nxf1 17. Nxf1 (17. Bxf1 Nxd4 18. b4 Be6 $15) 17... Nxd4 18. dxc7 $16) 15. Nd5 {[%emt 0:00:11][%cal Ob2b4]} Bd7 {[%emt 0:00:53]} 16. b4 {[%emt 0:01:13][%cal Ob4b5]} Qh6 {[%emt 0:00:18][%csl Gg4][%cal Rh6h2]} 17. Bh1 {[%emt 0:01:38]} (17. Nxc7 $2 Qxh2#) (17. h3 $11 {and White has nothing to worry.} Nf6 18. Nxc7) 17... Nf6 {[%emt 0:00:40]} (17... Rad8 $19 {[%cal Oc6b4]} 18. Nf4 (18. b5 $2 Nxd4 19. exd4 Bxb5 $19) 18... Bg5 (18... g5 $2 19. Nd5 $19)) 18. Nxe7 {[%emt 0:01:48]} (18. Nxc7 Rac8 19. Nb5 Ng4 $17) (18. Nxf6 $15 Bxf6 19. Nb3) 18... Nxe7 $17 {[%emt 0:03:57]} 19. Nc4 {[%emt 0:00:04]} Bb5 {[%emt 0:00:00]} 20. a4 {[%emt 0:00:03]} Bxc4 {[%emt 0:00:00]} 21. Qxc4 {[%emt 0:00:01]} Ng4 $1 {[%emt 0:00:00][%csl LRe3,LRh2]} 22. Qe2 {[%emt 0:00:14][%cal Oh1e4]} Nd5 {[%emt 0:00:00][%csl LRb4,LRe3]} 23. Bd2 {[%emt 0:00:10][%cal Oh1e4]} Qg5 {[%emt 0:00:00]} (23... Ngxe3 $6 24. Rae1 f4 25. Bxe3 fxe3 (25... Nxe3 26. Rxf4 Rxf4 27. gxf4 $16) 26. Bxe4 $14) (23... Rae8 $17 {[%cal Oh6h5]} 24. b5 Ngxe3) 24. Ra3 {[%emt 0:01:03]} (24. Bg2 $11) 24... Rf6 {[%emt 0:00:00]} (24... Qh5 $15 25. Qg2 Ngf6) 25. Bg2 $11 {[%emt 0:01:23]} Rh6 {[%emt 0:00:00]} 26. h3 {[%emt 0:00:07]} Ngf6 {[%emt 0:00:00] Excellent horsemanship.} 27. Be1 {[%emt 0:00:03]} Rg6 {[%emt 0:00:00]} 28. Kh2 {[%emt 0:00:23]} Nh5 $2 {[%emt 0:00:00]} (28... Rh6 $11 29. Kg1 a6) 29. Qf2 $2 {[%emt 0:00:10]} (29. h4 $18 Qg4 30. Qxg4 Rxg4 31. Rxf5) 29... Rf6 $132 {[%emt 0:00:00][%mdl 2048] Black has counterplay} 30. b5 {[%emt 0:00:17]} Qh6 {[%emt 0:00:00]} 31. Qe2 {[%emt 0:04:30]} g5 {[%emt 0:00:00]} 32. Qa2 {[%emt 0:00:00]} c6 {[%emt 0:00:00]} 33. bxc6 {[%emt 0:00:00]} (33. a5 $11 a6 34. bxc6 bxc6 35. Qe2) 33... bxc6 $17 {[%emt 0:00:00]} 34. Rb3 {[%emt 0:00:00]} Raf8 {[%emt 0:00:00]} (34... Re8 $1 $17 {Threatens to win with ...f4.} 35. Qb2 Rff8) 35. Qb2 {[%emt 0:00:00] [#]} (35. Kg1 $11 {remains equal.}) 35... f4 {[%emt 0:00:01]} (35... g4 $1 $17 {[%cal Rg4h3]} 36. hxg4 Nhf4+ (36... fxg4 37. Rxf6 Qxf6 38. Rb8 $18) 37. Kg1 Nxg2 38. Qxg2 Nxe3 (38... fxg4 39. Rxf6 Qxf6 40. Qf2 $15)) 36. g4 $15 {[%emt 0:00:00]} f3 {[%emt 0:00:41]} ({Black should play} 36... fxe3 $17 37. Rxf6 Nhxf6) 37. gxh5 $11 {[%emt 0:00:00]} fxg2 {[%emt 0:00:33]} 38. Rxf6 {[%emt 0:00:00]} Qxf6 {[%emt 0:00:04]} (38... Nxf6 $11 {keeps the balance.} 39. Rb8 Kg8) 39. Qxg2 $16 {[%emt 0:00:00]} Qf3 {[%emt 0:00:07] [#] And now ...Qd1 would win.} 40. Bg3 {[%emt 0:00:00]} (40. Qxg5 $2 {perishes.} Qe2+ 41. Qg2 Qxe1 $19) ({Better is} 40. h6 $1 $16 {Hoping for Qxf3.} Qxg2+ (40... Nxe3 $2 41. Qxf3 exf3 42. Rxe3 $18) (40... Qd1 $2 41. Qxg5 Qe2+ 42. Qg2 $18) 41. Kxg2) 40... Qxh5 {[%emt 0:00:07][%mdl 8192]} (40... Kg7 $1 $15 {keeps the upper hand.}) 41. Be5+ $2 {[%emt 0:00:00]} (41. Qxe4 $18 {Strongly threatening Rb2.} a5 42. Rb2) 41... Kg8 $11 {[%emt 0:00:02] The position is equal.} 42. Rb7 {[%emt 0:00:00]} (42. Qxe4 $2 {is the wrong capture.} Qe2+ 43. Qg2 Rf2 $19) 42... Rf7 {[%emt 0:00:07]} 43. Rb8+ {[%emt 0:00:01]} Rf8 {[%emt 0:00:01]} 44. Rb7 {[%emt 0:00:01]} Rf7 {[%emt 0:00:01]} 45. Rb8+ {[%emt 0:00:01] Weighted Error Value: White=0.42/Black=0.43.  Loses game:     	---       	Black=2      Missed win:     	White=2     	---        Mistake:       	White=9     	Black=9      Inaccurate:     	White=2     	Black=2      OK:         	White=11    	Black=11     Best:        	White=2     	Black=1      Strong:       	White=1     	Black=1} 1/2-1/2

[Event "RLP-ch Rapid 2024"]
[Site "Landau"]
[Date "2024.05.04"]
[Round "2.3"]
[White "Barzen, Pascal"]
[Black "Sidletskyi, Ivan"]
[Result "1-0"]
[ECO "C02"]
[WhiteElo "2291"]
[BlackElo "2346"]
[Annotator "TA"]
[PlyCount "79"]
[EventDate "2024.05.03"]
[EventType "swiss"]
[EventCountry "GER"]
[SourceTitle "playchess.com"]
[Source "ChessBase"]
[SourceQuality "1"]
[TimeControl "900+5"]

{[%evp 22,79,-73,-64,-70,-73,0,-84,-87,-110,-98,-127,-113,-126,33,-71,-60,-128,-131,-113,-114,-109,0,0,0,-25,0,-185,-176,-181,-62,-35,98,0,399,368,415,395,406,394,413,397,418,399,404,377,388,339,29948,29952,6111,5232,29991,435,29992,29993,29998,29999,29999,29999]} 1. e4 {[%emt 0:00:01]} e6 {[%emt 0:00:03]} 2. d4 {[%emt 0:00:02]} d5 {[%emt 0:00:02]} 3. e5 {[%emt 0:00:02]} c5 {[%emt 0:00:01]} 4. c3 {[%emt 0:00:01]} Nc6 {[%emt 0:00:01]} 5. Nf3 {[%emt 0:00:01]} Bd7 {[%emt 0:00:00]} 6. Bd3 {[%emt 0:00:04]} cxd4 {[%emt 0:00:03]} 7. cxd4 {[%emt 0:00:03]} Qb6 {[%emt 0:00:02]} 8. O-O {[%emt 0:00:17]} Nxd4 {[%emt 0:00:02]} 9. Nxd4 {[%emt 0:00:01]} Qxd4 {[%emt 0:00:01]} 10. Nc3 {[%emt 0:00:01]} a6 {[%emt 0:00:31]} 11. Qe2 {[%emt 0:00:14]} Rc8 {[%emt 0:00:08]} 12. Kh1 {[%emt 0:00:09]} Bc5 {[%emt 0:01:10]} 13. a3 {[%emt 0:02:30]} Nh6 {[%emt 0:01:24]} (13... Qh4 $17 14. Bd2 Nh6) 14. h3 {[%emt 0:03:34]} (14. Bxh6 $1 $11 {keeps the balance.} gxh6 15. f4) 14... Qh4 $17 {[%emt 0:01:52] Black is better.} 15. Kh2 {[%emt 0:01:55]} Nf5 {[%emt 0:02:53]} 16. g3 {[%emt 0:01:06]} Qd8 {[%emt 0:00:11]} (16... Qd4 $6 17. Bf4 Be7 18. Rfd1 $14) 17. h4 {[%emt 0:02:24]} h5 $2 {[%emt 0:01:37]} (17... Ne7 $17 18. h5 Nc6) 18. Bg5 {[%emt 0:00:09]} (18. Bxf5 $14 {was forced to keep a grip.} d4 (18... exf5 19. Bg5 $14) 19. Bg5) 18... Be7 {[%emt 0:00:32]} 19. Bxf5 {[%emt 0:00:14]} ({Better is} 19. Bxe7 $15 Nxe7 20. Qe3) 19... Bxg5 $1 {[%emt 0:00:15]} 20. hxg5 {[%emt 0:00:03]} exf5 {[%emt 0:00:18]} 21. Qe3 {[%emt 0:00:24][%cal Of1d1]} h4 {[%emt 0:00:45]} (21... d4 $17 22. Qxd4 Qxg5) 22. f4 $1 $11 {[%emt 0:01:38]} (22. Nxd5 hxg3+ 23. Kg2 (23. Kxg3 $2 Rh3+ 24. Kxh3 f4+ 25. Kh4 fxe3 $19) 23... Rh2+ (23... Bc6 $2 24. Kxg3 Qxd5 25. f3 $19) 24. Kxg3 Rh3+ 25. Kxh3 f4+ 26. Kh2 fxe3 $19) 22... Be6 {[%emt 0:01:14]} 23. Rad1 {[%emt 0:00:10]} Rc4 {[%emt 0:00:50]} 24. Ne2 $2 {[%emt 0:00:56]} (24. Rd3 $11 {and White stays safe.}) 24... Re4 $19 {[%emt 0:00:28]} 25. Qf2 {[%emt 0:00:01]} hxg3+ {[%emt 0:00:37]} (25... f6 $1 $19 {[%cal Rf6g5]} 26. Nd4 hxg3+ (26... fxe5 27. Nxe6 hxg3+ 28. Kxg3 $17) 27. Kxg3 Kf7 28. g6+ Ke7 (28... Kxg6 $2 29. Nxe6 Qe8 30. Nc5 $18) 29. exf6+ Kxf6) 26. Kxg3 $15 {[%emt 0:00:02][%cal Bh2g3,Bg3f3,Bf3e2,Be2e1][%mdl 32]} Rxe5 {[%emt 0:00:06] [#]} 27. Nc3 {[%emt 0:00:18]} (27. fxe5 $2 Qxg5+ 28. Kf3 Rh3+ 29. Ng3 f4 $19) (27. Rh1 $1 $16 {[%cal Rh1h8]} Rxh1 28. Rxh1 Rxe2 29. Rh8+ (29. Qxe2 Qb6 $14) 29... Ke7 30. Qc5+ Qd6 31. Re8+ Kxe8 32. Qxd6) 27... d4 $2 {[%emt 0:00:55][%mdl 8192]} 28. Rxd4 $18 {[%emt 0:00:08]} Qe7 {[%emt 0:00:30]} ({But not} 28... Bd5 $2 29. Qd2 (29. fxe5 $2 {is a self mate.} Qxg5+) 29... Qe7 30. Nxd5 $18 (30. fxe5 Bc6 $18)) 29. fxe5 {[%emt 0:00:16]} Qxg5+ {[%emt 0:00:11]} 30. Kf3 {[%emt 0:00:01]} Rh3+ {[%emt 0:00:24]} 31. Ke2 {[%emt 0:00:01]} Qh5+ {[%emt 0:00:02] [#]} 32. Ke1 $1 {[%emt 0:00:14]} Rh2 {[%emt 0:00:19] Prevents Qg2} 33. Qe3 {[%emt 0:00:12]} Rxb2 {[%emt 0:00:13]} 34. Rd2 {[%emt 0:00:20]} Rb3 {[%emt 0:00:06]} (34... Qh4+ $18 35. Kd1 Rb3) 35. Qd4 {[%emt 0:00:04][%csl Gd2][%cal Rd4d8]} Qg5 {[%emt 0:00:05]} 36. Rg1 {[%emt 0:00:12]} Qe7 {[%emt 0:00:14]} 37. Nd5 {[%emt 0:00:07]} (37. Rxg7 $142 Kf8 38. Rdg2 Qc7 39. Rg8+ Ke7 40. Rc2 f4 41. Nd5+ Bxd5 42. Rxc7+ Ke6 43. Qxf4 (43. Re8+ Kf5 44. Qxd5 Re3+ 45. Kf2 Re2+ 46. Kxe2 f3+ 47. Qxf3+ Kg6 48. Qg4+ Kh7 49. Rxf7+ Kh6 50. Rh8#)) 37... Qd7 {[%emt 0:00:00] [#]} (37... Bxd5 $18 38. Qxd5 Rb5) 38. Nf6+ $1 {[%emt 0:00:05][%mdl 512] White mates.} gxf6 {[%emt 0:00:00]} (38... Kd8 39. Nxd7) 39. Rg8+ {[%emt 0:00:01]} Ke7 {[%emt 0:00:00]} 40. Qc5+ {[%emt 0:00:01] Weighted Error Value: White=0.51/Black=0.93.  Loses game:     	White=1     	Black=1      Mistake:       	White=4     	Black=6      OK:         	White=1     	Black=9      Best:        	White=4     	Black=1      Strong:       	White=2     	Black=1} 1-0

[Event "RLP-ch Rapid 2024"]
[Site "Landau"]
[Date "2024.05.04"]
[Round "2.4"]
[White "Lebzak, Jaroslav"]
[Black "Schenderowitsch, Michael"]
[Result "1-0"]
[ECO "B12"]
[WhiteElo "2141"]
[BlackElo "2233"]
[Annotator "RC"]
[PlyCount "101"]
[EventDate "2024.05.03"]
[EventType "swiss"]
[EventCountry "GER"]
[SourceTitle "playchess.com"]
[Source "ChessBase"]
[SourceQuality "1"]
[TimeControl "900+5"]

1. e4 {[%emt 0:00:01]} c6 {[%emt 0:00:01]} 2. d4 {[%emt 0:00:03]} d5 {[%emt 0:00:01]} 3. f3 {[%emt 0:00:00]} Qb6 {[%emt 0:00:08]} 4. c3 {[%emt 0:00:12]} e6 {[%emt 0:01:07]} 5. Bd3 {[%emt 0:00:13]} c5 {[%emt 0:00:25]} 6. Ne2 {[%emt 0:00:27]} Nc6 {[%emt 0:00:04]} 7. O-O {[%emt 0:01:56]} Nf6 {[%emt 0:01:42]} 8. Kh1 {[%emt 0:00:30]} Be7 {[%emt 0:01:07]} 9. a3 {[%emt 0:00:59]} a5 {[%emt 0:00:33]} 10. e5 {[%emt 0:01:18]} Nd7 {[%emt 0:00:03]} 11. Bc2 {[%emt 0:00:04]} Qd8 {[%emt 0:00:52]} 12. Be3 {[%emt 0:00:35]} Nb6 {[%emt 0:00:23]} 13. Nd2 {[%emt 0:00:36]} cxd4 {[%emt 0:00:30]} 14. cxd4 {[%emt 0:00:12]} a4 {[%emt 0:00:15]} 15. f4 {[%emt 0:00:44]} g6 {[%emt 0:00:02]} 16. g4 {[%emt 0:00:01]} Bd7 {[%emt 0:01:55]} 17. f5 {[%emt 0:00:35]} Bg5 {[%emt 0:00:08]} 18. Nf4 {[%emt 0:01:11]} Bxf4 {[%emt 0:01:21]} 19. Rxf4 {[%emt 0:00:30]} g5 {[%emt 0:00:21]} 20. Rf2 {[%emt 0:00:46]} Na5 {[%emt 0:00:07]} 21. fxe6 {[%emt 0:01:51]} Bxe6 {[%emt 0:00:03]} 22. Rf6 {[%emt 0:00:10]} h6 {[%emt 0:00:51]} 23. Bxa4+ {[%emt 0:02:01]} Nxa4 {[%emt 0:00:01]} 24. Qxa4+ {[%emt 0:00:01]} Qd7 {[%emt 0:00:25]} 25. Qb4 {[%emt 0:00:52]} Nc6 {[%emt 0:00:06]} 26. Qc5 {[%emt 0:00:16]} Rc8 {[%emt 0:00:23]} 27. Qb6 {[%emt 0:00:28]} Nd8 {[%emt 0:01:02]} 28. Nb3 {[%emt 0:00:15]} Rc6 {[%emt 0:00:01]} 29. Qb4 {[%emt 0:00:11]} b6 {[%emt 0:00:02]} 30. a4 {[%emt 0:00:16]} Rc2 {[%emt 0:00:59]} 31. a5 {[%emt 0:00:08]} Bxg4 {[%emt 0:01:06]} 32. axb6 {[%emt 0:00:07]} Bh3 {[%emt 0:00:17]} 33. Rg1 {[%emt 0:00:12]} Bf5 {[%emt 0:00:08]} 34. Nc5 {[%emt 0:00:04]} Rxc5 {[%emt 0:00:13]} 35. dxc5 {[%emt 0:00:05]} Be4+ {[%emt 0:00:00]} 36. Rg2 {[%emt 0:00:02]} Qg4 {[%emt 0:00:22]} 37. Qd2 {[%emt 0:00:05]} d4 {[%emt 0:00:24]} 38. Bxd4 {[%emt 0:00:08]} O-O {[%emt 0:00:16]} 39. Rf1 {[%emt 0:00:07]} Ne6 {[%emt 0:00:10]} 40. Be3 {[%emt 0:00:02]} Rd8 {[%emt 0:00:04]} 41. Qf2 {[%emt 0:00:04]} Rd7 {[%emt 0:00:07]} 42. Kg1 {[%emt 0:00:01]} Bxg2 {[%emt 0:00:05]} 43. Qxg2 {[%emt 0:00:01]} Qb4 {[%emt 0:00:21]} 44. c6 {[%emt 0:00:02]} Rd8 {[%emt 0:00:04]} 45. c7 {[%emt 0:00:04]} Rf8 {[%emt 0:00:02]} 46. Qf3 {[%emt 0:00:10]} Qb3 {[%emt 0:00:02]} 47. c8=Q {[%emt 0:00:24]} Rxc8 {[%emt 0:00:04]} 48. Qxf7+ {[%emt 0:00:00]} Kh8 {[%emt 0:00:00]} 49. Qf6+ {[%emt 0:00:00]} Kh7 {[%emt 0:00:11]} 50. Qf7+ {[%emt 0:00:00]} Ng7 {[%emt 0:00:01]} 51. Qxb3 {[%emt 0:00:01]} 1-0

[Event "RLP-ch Rapid 2024"]
[Site "Landau"]
[Date "2024.05.04"]
[Round "2.5"]
[White "Lang, Torsten"]
[Black "Meuer, David"]
[Result "1-0"]
[ECO "D02"]
[WhiteElo "2299"]
[BlackElo "2067"]
[Annotator "TA"]
[PlyCount "107"]
[EventDate "2024.05.03"]
[EventType "swiss"]
[EventCountry "GER"]
[SourceTitle "playchess.com"]
[Source "ChessBase"]
[SourceQuality "1"]
[TimeControl "900+5"]

{[%evp 13,107,-1,0,-8,-3,-23,-22,-14,-6,-9,-4,-39,-21,-27,-12,-47,154,81,93,89,88,85,83,90,80,90,97,95,86,70,78,77,89,86,95,78,93,101,99,106,137,138,153,145,152,137,159,159,176,181,208,212,200,191,224,188,220,146,187,185,187,187,210,204,291,208,199,201,698,684,702,704,712,687,1348,1228,1660,1535,29964,29965,29971,29972,29984,29985,29976,29973,29992,29990,29990,29987,29987,29987,29991,29989,29989,29990]} 1. d4 {[%emt 0:00:03]} e6 {[%emt 0:00:01]} 2. Nf3 {[%emt 0:00:03]} Nf6 {[%emt 0:00:01]} 3. Bf4 {[%emt 0:00:02]} d5 {[%emt 0:00:03]} 4. e3 {[%emt 0:00:03]} c5 {[%emt 0:00:01]} 5. c3 {[%emt 0:00:02]} Nc6 {[%emt 0:00:04]} 6. Nbd2 {[%emt 0:00:06]} Bd6 {[%emt 0:00:01]} 7. Bg3 {[%emt 0:00:03]} O-O {[%emt 0:00:17]} 8. Ne5 {[%emt 0:00:10]} Qc7 {[%emt 0:00:11]} 9. f4 {[%emt 0:00:07]} b6 {[%emt 0:00:11]} 10. Bd3 {[%emt 0:00:07] The position is equal.} Bb7 {[%emt 0:00:09]} 11. Bh4 {[%emt 0:00:10] [#]} Ne4 {[%emt 0:00:50]} 12. O-O {[%emt 0:02:03]} (12. Nxe4 dxe4) 12... f6 {[%emt 0:01:27]} (12... Ne7 $5) 13. Nxc6 {[%emt 0:00:29]} Bxc6 {[%emt 0:00:02]} 14. Rc1 {[%emt 0:01:24]} e5 $2 {[%emt 0:00:40] [#]} (14... Nxd2 $15 {keeps the upper hand.} 15. Qxd2 c4) 15. Nxe4 {[%emt 0:00:23]} (15. dxe5 $142 $1 {Black must now prevent Nxe4.} fxe5 16. Nxe4 dxe4 17. Bc4+ Kh8 18. f5) 15... dxe4 $16 {[%emt 0:00:05]} 16. Bc4+ {[%emt 0:00:04]} Kh8 {[%emt 0:00:03]} 17. fxe5 {[%emt 0:00:29]} fxe5 {[%emt 0:00:19]} 18. d5 {[%emt 0:00:09]} Rxf1+ {[%emt 0:00:15]} 19. Qxf1 {[%emt 0:00:03]} Rf8 {[%emt 0:00:40]} 20. Qe2 {[%emt 0:00:02]} Be8 {[%emt 0:02:53]} 21. Rf1 {[%emt 0:01:40]} Rxf1+ {[%emt 0:00:04]} 22. Qxf1 {[%emt 0:00:02]} Qf7 {[%emt 0:00:01]} 23. Qxf7 {[%emt 0:02:00]} Bxf7 {[%emt 0:00:01][%mdl 4096] Endgame. KBB-KBB} 24. a4 {[%emt 0:00:02]} Kg8 {[%emt 0:01:25]} 25. Bd8 {[%emt 0:00:08]} Kf8 {[%emt 0:00:24]} 26. a5 {[%emt 0:00:12]} bxa5 {[%emt 0:00:09]} (26... Ke8 27. axb6 axb6 28. Bxb6) 27. Bxa5 {[%emt 0:00:04]} Ke7 {[%emt 0:00:31]} 28. Kf2 {[%emt 0:00:02]} Be8 {[%emt 0:01:31]} 29. Ke2 {[%emt 0:01:12]} g5 {[%emt 0:01:03]} 30. Kd2 {[%emt 0:00:27]} h5 {[%emt 0:00:07]} 31. Be2 {[%emt 0:00:24]} Bf7 {[%emt 0:00:20]} 32. c4 {[%emt 0:00:02]} Kd7 {[%emt 0:01:05]} 33. Bc3 {[%emt 0:00:46]} Kc7 {[%emt 0:00:36]} 34. Bd1 {[%emt 0:00:04]} Bg6 {[%emt 0:00:16]} 35. Ba4 {[%emt 0:00:03]} Kb6 {[%emt 0:00:13]} 36. Bd7 {[%emt 0:00:14]} Kc7 {[%emt 0:00:12]} 37. Be6 {[%emt 0:00:03]} Kb6 {[%emt 0:00:20]} 38. Kc2 {[%emt 0:00:06]} Kc7 {[%emt 0:00:09]} (38... h4 $142 39. Bg4 Bb8) 39. Kb3 {[%emt 0:00:12]} Kb6 {[%emt 0:00:00]} 40. Ka3 {[%emt 0:00:02]} a5 $2 {[%emt 0:00:02]} (40... Kb7 41. Ba5 Be7) 41. Bd7 $18 {[%emt 0:00:06]} h4 {[%emt 0:00:40]} 42. Ka4 {[%emt 0:00:16]} Bh5 {[%emt 0:00:09]} 43. Bxa5+ {[%emt 0:00:04]} Kb7 {[%emt 0:00:06]} 44. Kb5 {[%emt 0:00:23]} Bf3 {[%emt 0:00:47]} 45. g3 {[%emt 0:00:28]} hxg3 {[%emt 0:00:09]} 46. hxg3 {[%emt 0:00:02] White mates.} g4 {[%emt 0:00:11][%cal Bg5g4,Bg4g3,Bg3g2][%mdl 32]} 47. Bb6 {[%emt 0:00:38]} Be7 {[%emt 0:00:01]} 48. Bxc5 {[%emt 0:00:17]} Bg5 {[%emt 0:00:11]} 49. Bf5 {[%emt 0:00:31]} Bf4 {[%emt 0:00:08]} 50. exf4 {[%emt 0:00:29]} exf4 {[%emt 0:00:01]} 51. gxf4 {[%emt 0:00:04]} g3 {[%emt 0:00:02]} 52. Be3 {[%emt 0:00:23]} Kc7 {[%emt 0:00:01]} 53. Kc5 {[%emt 0:00:07]} g2 {[%emt 0:00:02]} 54. d6+ {[%emt 0:00:13] Weighted Error Value: White=0.11 (very precise) /Black=0.47.  Mistake:       	White=1     	Black=3      Inaccurate:     	White=3     	---        OK:         	White=14    	Black=10     Best:        	White=3     	Black=1} 1-0